[Event "98th Caplin Hastings Masters 2024-25"]
[Site "Hastings"]
[Date "2024.12.29"]
[Round "2.2"]
[White "Laurent-Paoli, Pierre"]
[Black "Grutter, Tim"]
[Result "1/2-1/2"]
[ECO "E73"]
[WhiteElo "2559"]
[BlackElo "2379"]
[Annotator "TA"]
[PlyCount "102"]
[EventDate "2024.12.23"]
[EventType "swiss"]
[EventCountry "ENG"]
[SourceTitle "playchess.com"]
[Source "ChessBase"]
[SourceQuality "1"]
[TimeControl "5400+30"]

{[%evp 12,102,30,12,12,18,21,37,27,21,16,25,35,19,17,11,14,18,8,1,76,78,94,64,182,139,139,66,82,27,36,40,34,42,39,36,52,60,47,28,21,13,24,18,55,39,58,0,0,0,0,0,0,0,0,0,0,0,0,0,0,0,0,0,0,0,0,0,0,-6,-8,-66,-80,-69,-67,-125,-114,-225,-234,-219,-81,-77,-77,-185,-180,-181,-184,-177,0,0,0,0,0]} 1. d4 {[%emt 0:07:30]} Nf6 {[%emt 0:00:13]} 2. c4 {[%emt 0:00:10]} g6 {[%emt 0:00:08]} 3. Nc3 {[%emt 0:00:06]} Bg7 {[%emt 0:00:08]} 4. e4 {[%emt 0:00:05]} d6 {[%emt 0:00:05]} 5. Be2 {[%emt 0:00:19]} O-O {[%emt 0:00:45]} 6. h3 {[%emt 0:00:06]} Nc6 {[%emt 0:04:55]} 7. Nf3 {[%emt 0:05:00]} e5 {[%emt 0:03:20]} 8. d5 {[%emt 0:00:05]} Nd4 {[%emt 0:00:50]} 9. Nxd4 {[%emt 0:00:06]} exd4 {[%emt 0:00:04] White is slightly better.} 10. Qxd4 {[%emt 0:00:05]} Re8 {[%emt 0:01:58][%cal Of6e4]} 11. Qd3 {[%emt 0:01:10]} Qe7 {[%emt 0:01:30]} 12. f3 {[%emt 0:00:17]} Nh5 {[%emt 0:03:40]} 13. g4 {[%emt 0:01:05]} Ng3 {[%emt 0:10:35]} 14. Rg1 {[%emt 0:04:13]} Qh4 {[%emt 0:06:27][%csl LRe4,LRh3]} 15. Kd1 {[%emt 0:00:16]} f5 {[%emt 0:04:13]} (15... Nxe2 $11 {keeps the balance.} 16. Qxe2 a6) 16. gxf5 $1 $16 {[%emt 0:13:06]} gxf5 {[%emt 0:02:17]} (16... Qxh3 $2 17. f4 Bxc3 18. Qxg3 (18. bxc3 Nxe4 19. Qxh3 Nf2+ 20. Ke1 Nxh3 $19) 18... Qxg3 19. Rxg3 $18) 17. Bd2 {[%emt 0:41:04]} Nxe2 {[%emt 0:19:19]} (17... Qxh3 $2 18. f4 $18) (17... Kh8 $14) 18. Qxe2 $18 {[%emt 0:08:36] Bg5 is the strong threat.} Kh8 {[%emt 0:07:22]} 19. Qg2 {[%emt 0:04:30]} ({White should play} 19. Nb5 $16 Qe7 20. Kc2) 19... Bf6 $14 {[%emt 0:03:30]} 20. Bg5 {[%emt 0:07:44]} (20. Kc2 $16) 20... Bxg5 {[%emt 0:00:54]} 21. Qxg5 {[%emt 0:00:04]} Qxg5 {[%emt 0:00:06]} 22. Rxg5 {[%emt 0:00:02]} fxe4 {[%emt 0:03:28]} 23. Nxe4 {[%emt 0:00:43]} Bxh3 {[%emt 0:03:17]} 24. Kd2 {[%emt 0:00:57] Hoping for Rh1.} Rf8 {[%emt 0:01:00]} 25. Ke3 {[%emt 0:00:41]} Bf5 {[%emt 0:00:51]} 26. Rh1 {[%emt 0:02:01]} Rae8 {[%emt 0:02:23]} 27. b4 {[%emt 0:00:34]} Rf6 {[%emt 0:07:07]} 28. c5 {[%emt 0:00:53]} Bg6 {[%emt 0:03:26][%cal Of6f3] ...Rxf3+! would now be deadly.} 29. Kd4 {[%emt 0:02:11]} (29. cxd6 $14 cxd6 (29... Rxf3+ $2 30. Kxf3 Bxe4+ 31. Kf4 $18) 30. Rh4) 29... dxc5+ $1 $11 {[%emt 0:00:45]} 30. bxc5 {[%emt 0:00:28]} Ra6 {[%emt 0:01:02]} 31. Nc3 {[%emt 0:00:28]} Rf6 {[%emt 0:01:33]} 32. Ne4 {[%emt 0:00:48]} Ra6 {[%emt 0:00:07]} 33. Nc3 {[%emt 0:00:02]} Rf6 {[%emt 0:00:11]} 34. Rh4 {[%emt 0:01:07]} Kg7 {[%emt 0:00:15]} 35. f4 {[%emt 0:00:19]} Re1 {[%emt 0:02:52]} 36. Re5 {[%emt 0:00:12]} Rf1 {[%emt 0:01:05]} 37. Ke3 {[%emt 0:00:59]} Re1+ {[%emt 0:01:32]} 38. Kd4 {[%emt 0:00:03]} Rf1 {[%emt 0:00:06]} 39. Ke3 {[%emt 0:00:57]} Re1+ {[%emt 0:00:05]} 40. Ne2 {[%emt 0:00:31]} Rd1 {[%emt 0:00:28]} 41. Ng3 {[%emt 0:00:50]} ({White should try} 41. Rg4 $11 Kf7 42. c6 bxc6 43. Rgg5) 41... Rd3+ $15 {[%emt 0:00:56]} 42. Kf2 {[%emt 0:00:00]} Ra6 $1 {[%emt 0:00:36]} 43. f5 {[%emt 0:00:16]} (43. Nf5+ $15 Kf6 (43... Bxf5 44. Rxf5 Rxa2+ 45. Ke1 $11) 44. Ne3) 43... Rxa2+ $17 {[%emt 0:00:48]} 44. Ne2 {[%emt 0:00:27] [#]} (44. Re2 $17 Rxe2+ 45. Kxe2 Rxg3 46. fxg6 Rxg6 (46... Kxg6 47. Rb4 $11) (46... hxg6 47. d6 $15) 47. Kd3) 44... Bf7 $1 $19 {[%emt 0:00:13][%cal Oh7h5]} 45. c6 {[%emt 0:00:49]} Bxd5 {[%emt 0:02:53]} (45... Rxd5 46. cxb7 Rxe5 47. Rg4+ (47. b8=B $2 {too greedy.} Rexe2+ 48. Kg3 Re3+ 49. Kf4 Rb3 $19) 47... Kf6 48. b8=Q (48. b8=B {is a self mate.} Rexe2+ 49. Kf3 Bd5+) 48... Rexe2+ 49. Kg3 (49. Kf3 Bd5+ $19) 49... Ra3+ (49... Kxf5 50. Qb5+ Ke6 51. Qc6+ Ke7 52. Qxc7+ Ke8 53. Kh4 $14) 50. Kf4 Rf2+ 51. Ke4 Re2+ 52. Kf4 Rf2+ 53. Ke4 Ra4+ 54. Ke3 $11) (45... b5 $19 {has better winning chances.} 46. Re7 Rxd5) 46. cxb7 $17 {[%emt 0:00:36]} Bxb7 {[%emt 0:00:17]} 47. Rc4 {[%emt 0:00:51]} (47. Re7+ $17 Kf6 48. Rhxh7) 47... Kf6 $19 {[%emt 0:00:56]} 48. Re6+ {[%emt 0:00:31]} Kxf5 {[%emt 0:00:19]} 49. Re7 {[%emt 0:00:02] [#]} Rdd2 $2 {[%emt 0:02:51]} (49... Bd5 $1 $19 {[%cal Rd5c4]} 50. Rcxc7 a5) 50. Rf4+ $11 {[%emt 0:00:31]} Kg6 {[%emt 0:00:38] White must now prevent ...Bd5.} (50... Kg5 $5 51. Re5+ $8 Kg6 52. Re6+ Kg5 53. Re5+ Kg6 54. Re6+ Kg7 55. Re7+ Kg6 56. Re6+ $11) 51. Re6+ {[%emt 0:00:06]} Kg5 {[%emt 0:00:30] White used his chance.   Weighted Error Value: White=0.18 (very precise) /Black=0.19 (very precise) .  Missed win:     	---       	Black=1      Mistake:       	White=7     	Black=3      Inaccurate:     	White=1     	Black=1      OK:         	White=14    	Black=19     Best:        	White=2     	Black=7      Strong:       	White=1     	Black=3} 1/2-1/2

[Event "98th Caplin Hastings Masters 2024-25"]
[Site "Hastings"]
[Date "2024.12.29"]
[Round "2.3"]
[White "Balaji, Aaravamudhan"]
[Black "Boyer, Mahel"]
[Result "0-1"]
[ECO "B06"]
[WhiteElo "2364"]
[BlackElo "2526"]
[Annotator "TA"]
[PlyCount "74"]
[EventDate "2024.12.23"]
[EventType "swiss"]
[EventCountry "ENG"]
[SourceTitle "playchess.com"]
[Source "ChessBase"]
[SourceQuality "1"]
[TimeControl "5400+30"]

{[%evp 20,74,40,37,35,20,21,7,20,27,33,0,0,-34,-38,-35,-6,-35,-33,-27,-15,-13,-6,-31,0,-43,-65,-101,-60,-146,-156,-145,-150,-155,-141,-149,-122,-122,-112,-112,-108,-127,-112,-113,-131,-249,-266,-240,-102,-289,-291,-558,-562,-782,-776,-1510,-1477]} 1. d4 {[%emt 0:07:20]} g6 {[%emt 0:00:24]} 2. e4 {[%emt 0:00:28]} Bg7 {[%emt 0:00:07]} 3. Nc3 {[%emt 0:00:16]} d6 {[%emt 0:00:06]} 4. Be3 {[%emt 0:04:48]} Nf6 {[%emt 0:00:26]} 5. Nf3 {[%emt 0:01:33]} O-O {[%emt 0:00:26]} 6. Qd2 {[%emt 0:02:10]} c6 {[%emt 0:00:07]} 7. h3 {[%emt 0:01:10]} Nbd7 {[%emt 0:01:17]} 8. a4 {[%emt 0:13:41]} e5 {[%emt 0:00:52]} 9. dxe5 {[%emt 0:06:59]} dxe5 {[%emt 0:01:25]} 10. Qd6 {[%emt 0:17:24] B08: Pirc Defence: Classical System.} Qa5 {[%emt 0:02:20]} 11. Nd2 $146 {[%emt 0:02:49]} ({Predecessor:} 11. b4 Qd8 12. a5 Ne8 13. Qd1 Qe7 14. Qb1 Kh8 15. Bd3 f5 16. O-O Nc7 17. Bc1 Ne6 {½-½ Jose Queralto,D (2460)-Bloesl,S (2404) Champion's League 2021/C4 email}) 11... Re8 {[%emt 0:19:03]} 12. Nc4 {[%emt 0:07:46]} Qd8 $1 {[%emt 0:13:20]} (12... Nxe4 $2 13. Qa3 Bf8 14. Nxa5 $18) 13. Qd3 {[%emt 0:01:03]} Qe7 {[%emt 0:00:40]} 14. O-O-O {[%emt 0:11:24]} Bf8 {[%emt 0:00:59]} (14... Nc5 $6 15. Qd6 Ne6 16. a5 $16 (16. Nxe5 Qxd6 17. Rxd6 Nxe4 $14) (16. Qxe5 Ng4 $11)) 15. Nd6 {[%emt 0:06:53]} Rd8 {[%emt 0:00:35]} 16. Qc4 {[%emt 0:06:30]} Nb6 {[%emt 0:02:39]} 17. Nxc8 {[%emt 0:00:25]} Raxc8 {[%emt 0:01:33]} 18. Qb3 {[%emt 0:00:35]} Rxd1+ {[%emt 0:06:29]} 19. Kxd1 {[%emt 0:00:00]} Rc7 {[%emt 0:03:29]} 20. Kc1 {[%emt 0:04:01]} (20. Qa2 {is interesting.} Qb4 21. a5 Nbd7 22. Bc4) 20... Nbd7 {[%emt 0:02:16]} 21. Be2 {[%emt 0:02:12]} a6 {[%emt 0:05:19]} 22. a5 {[%emt 0:01:13]} Qb4 {[%emt 0:00:34]} 23. Qa2 {[%emt 0:00:27]} Bc5 {[%emt 0:03:26]} 24. Bd2 {[%emt 0:00:51]} (24. Bxc5 $15 Nxc5 25. f3) 24... Nxe4 $17 {[%emt 0:00:13]} (24... Bxf2 25. Nd5 Qd6 (25... Qxe4 26. Bf3 $16) 26. Nxc7 Nxe4 27. Bh6 Qxc7 (27... Ng3 $2 28. Bc4 $18) 28. Rf1 $14) 25. Nxe4 {[%emt 0:00:25]} Qxe4 {[%emt 0:00:02]} 26. Bf3 {[%emt 0:00:28]} Qh4 {[%emt 0:01:43]} 27. g3 {[%emt 0:00:36]} Qf6 {[%emt 0:00:09]} 28. Be2 {[%emt 0:00:30]} Nf8 {[%emt 0:09:49]} (28... Qxf2 $2 29. Rf1 Qxe2 30. Qxf7+ Kh8 31. Qe8+ Nf8 32. Re1 $18 (32. Rxf8+ Kg7 $18) (32. Rxf8+ Kg7 $18)) 29. Rf1 {[%emt 0:00:28]} Rd7 {[%emt 0:00:13]} (29... Bxf2 30. Qc4 $14) 30. h4 {[%emt 0:00:32]} h5 {[%emt 0:01:12]} (30... Bxf2 31. Bg5 Qf5 32. g4 $11) 31. Qc4 {[%emt 0:00:32]} Ne6 {[%emt 0:02:02]} (31... Bxf2 $2 32. Bg5 Qf5 33. g4 $18) 32. g4 {[%emt 0:00:25]} (32. Be3 $17 {keeps fighting.} Rd5 33. Kb1) 32... Rd4 $19 {[%emt 0:07:10]} (32... Bxf2 33. gxh5 Rd4 (33... Qxh4 34. hxg6 Nd4 35. Kb1 $18) 34. Qc3 gxh5 (34... Qxh4 $2 35. hxg6 fxg6 36. Qb3 $18) 35. Bxh5 $15) 33. Qb3 {[%emt 0:00:14]} Nf4 {[%emt 0:00:41]} (33... Qxh4 34. Qxb7 hxg4 35. Qxc6 $15) (33... hxg4 $19 {[%cal Od4d2] and Black stays clearly on top. White must now prevent ...Rxd2!} 34. Qxb7 Rxd2 (34... Qxh4 35. Qxc6 Rd6 36. Qa8+ Rd8 37. Qb7 $11) 35. Kxd2 Qf4+ 36. Kd1 Bxf2 37. Qb8+ Nf8) 34. Bd1 $2 {[%emt 0:00:45]} (34. Bc4 $17) 34... hxg4 $19 {[%emt 0:00:24]} (34... Qxh4 35. Bxf4 Rxf4 36. gxh5 $17) 35. Qxb7 $2 {[%emt 0:00:34]} (35. Bxg4 Qxh4 36. Bxf4 Rxf4 (36... Qxg4 $2 37. Bg3 $19) 37. Bd1) 35... g3 $19 {[%emt 0:01:31]} ({Less strong is} 35... Qxh4 36. Qxc6 Bf8 37. Be3 $17 (37. Qxa6 Qd8 $15)) 36. Qb8+ {[%emt 0:00:31]} Rd8 {[%emt 0:00:16]} 37. Qc7 {[%emt 0:00:31]} g2 {[%emt 0:00:57]} (37... Qxh4 38. fxg3 (38. Qxc6 $2 g2 $19) 38... Qf6 39. gxf4 $18) 0-1

[Event "98th Caplin Hastings Masters 2024-25"]
[Site "Hastings"]
[Date "2024.12.29"]
[Round "2.4"]
[White "Stefansson, Vignir Vatnar"]
[Black "Waldhausen Gordon, Frederick"]
[Result "1/2-1/2"]
[ECO "D37"]
[WhiteElo "2537"]
[BlackElo "2355"]
[Annotator "TA"]
[PlyCount "56"]
[EventDate "2024.12.23"]
[EventType "swiss"]
[EventCountry "ENG"]
[SourceTitle "playchess.com"]
[Source "ChessBase"]
[SourceQuality "1"]
[TimeControl "5400+30"]

{[%evp 15,56,14,42,29,33,26,17,19,44,16,106,93,100,77,91,72,200,193,193,196,254,252,317,223,214,41,40,36,30,0,0,0,0,0,0,0,25,-87,0,-156,-133,-133,-111]} 1. d4 {[%emt 0:14:38]} Nf6 {[%emt 0:00:02]} 2. c4 {[%emt 0:00:11]} e6 {[%emt 0:00:05]} 3. Nf3 {[%emt 0:00:05]} d5 {[%emt 0:00:10]} 4. Nc3 {[%emt 0:00:06]} Be7 {[%emt 0:00:11]} 5. g3 {[%emt 0:00:10]} O-O {[%emt 0:01:31]} 6. Bg2 {[%emt 0:00:20]} dxc4 {[%emt 0:00:33]} 7. Ne5 {[%emt 0:00:24]} c5 {[%emt 0:00:51]} 8. dxc5 {[%emt 0:00:07]} Qc7 {[%emt 0:02:11]} (8... Qxd1+ {simplifies} 9. Nxd1 Bxc5 10. Nxc4 Nc6) 9. Nxc4 {[%emt 0:00:18]} Qxc5 {[%emt 0:00:07]} 10. b3 {[%emt 0:00:29]} Rd8 {[%emt 0:04:39] [#]} 11. Ba3 $1 {[%emt 0:01:34]} Rxd1+ {[%emt 0:12:16]} 12. Rxd1 {[%emt 0:00:13]} Qh5 {[%emt 0:02:12]} 13. Bxe7 $16 {[%emt 0:00:11]} Nfd7 {[%emt 0:06:59][%cal Bf6d7,Bd7e5,Be5f3][%mdl 32] Black is weak on the dark squares} 14. Bf3 {[%emt 0:21:47] This pair of bishops is nice.} Qg6 {[%emt 0:07:29]} 15. O-O {[%emt 0:04:27] White has more active pieces. The black rooks are passive.} f6 {[%emt 0:18:58] [#]} (15... Nc6 $16) 16. Na5 $1 $18 {[%emt 0:09:35]} Na6 {[%emt 0:09:04]} 17. Nxb7 {[%emt 0:00:17] And now Na5 would win.} Rb8 {[%emt 0:00:33]} (17... Ne5 {was called for.} 18. Be4 f5) 18. Na5 {[%emt 0:00:32]} Ne5 {[%emt 0:14:24]} 19. Rd8+ {[%emt 0:10:41]} Kf7 {[%emt 0:00:09]} 20. Bd6 $2 {[%emt 0:00:08]} ({White must play} 20. Be4 $18 Qh5 21. Bd6) 20... Nxf3+ $14 {[%emt 0:01:17]} 21. exf3 {[%emt 0:00:05][%csl Gd6][%cal Rd8f8]} Qd3 {[%emt 0:00:43][%csl LRc3,LRf3]} 22. Ne4 {[%emt 0:03:43][%cal Bc3e4,Be4d6,Bd6c8][%mdl 32]} (22. Bxb8 $2 Qxd8 23. Nc6 Qd3 $19) 22... e5 $1 {[%emt 0:05:47] aiming for ...Bh3.} 23. Bc7 $1 {[%emt 0:06:23] Chess con chili.} Qxf3 $40 {[%emt 0:02:20][%cal Oc8h3][%mdl 128] ( -> ...Bh3!) Black mounts an attack.} 24. Nd6+ {[%emt 0:00:30]} (24. Bxb8 Bh3) 24... Kg6 {[%emt 0:00:31]} 25. Nxc8 {[%emt 0:00:37]} Rb5 {[%emt 0:02:54]} (25... Nxc7 $5 26. Ne7+ $8 Kf7 27. Rxb8 Ne6 $11) 26. a4 {[%emt 0:06:50]} ({Of course not} 26. Nxa7 Nxc7 27. Nxb5 Nxb5 $17) (26. Ne7+ $11 {keeps the balance.} Kg5 27. Bxe5 Rxa5 28. Bb2) 26... Rc5 $17 {[%emt 0:01:35]} 27. Bxe5 $2 {[%emt 0:02:51]} Rxe5 {[%emt 0:01:25]} 28. Nc4 {[%emt 0:00:16]} Re6 {[%emt 0:00:22]} 1/2-1/2

[Event "98th Caplin Hastings Masters 2024-25"]
[Site "Hastings"]
[Date "2024.12.29"]
[Round "2.5"]
[White "Xue, Haowen"]
[Black "Siva Mahadevan"]
[Result "1/2-1/2"]
[ECO "A15"]
[WhiteElo "2502"]
[BlackElo "2349"]
[Annotator "TA"]
[PlyCount "83"]
[EventDate "2024.12.23"]
[EventType "swiss"]
[EventCountry "ENG"]
[SourceTitle "playchess.com"]
[Source "ChessBase"]
[SourceQuality "1"]
[TimeControl "5400+30"]

{[%evp 14,83,23,26,27,21,21,14,24,27,30,13,6,0,0,0,0,-1,-6,-9,-6,-6,-4,-16,-17,-18,-27,-13,-29,-25,-23,-10,-26,-32,-33,-21,-28,-28,-27,-25,-21,-24,-28,-43,-41,-68,-20,-11,-16,-25,-11,-18,-16,-20,0,0,0,0,0,0,0,0,0,0,0,0,0,0,0,0,0,0]} 1. c4 {[%emt 0:00:26]} Nf6 {[%emt 0:01:16]} 2. Nf3 {[%emt 0:00:11]} c6 {[%emt 0:01:03]} 3. g3 {[%emt 0:00:32]} d5 {[%emt 0:00:24]} 4. Bg2 {[%emt 0:00:06]} g6 {[%emt 0:00:52]} 5. O-O {[%emt 0:01:33]} Bg7 {[%emt 0:00:05]} 6. b3 {[%emt 0:01:22]} Ne4 {[%emt 0:03:16]} 7. d4 {[%emt 0:00:07]} O-O {[%emt 0:00:07]} 8. Bb2 {[%emt 0:00:18]} Qa5 {[%emt 0:00:47]} 9. Nfd2 {[%emt 0:23:21]} Nxd2 {[%emt 0:10:21]} 10. Qxd2 {[%emt 0:00:00]} Qxd2 {[%emt 0:00:19]} 11. Nxd2 {[%emt 0:00:00]} Rd8 {[%emt 0:00:34]} 12. Rac1 {[%emt 0:06:08]} Na6 {[%emt 0:08:53]} 13. a3 {[%emt 0:37:49]} Be6 {[%emt 0:01:35]} 14. Rfd1 {[%emt 0:04:30]} c5 {[%emt 0:15:59]} 15. e3 {[%emt 0:00:00][%cal Be2e3,Be3e4][%mdl 32]} Rab8 {[%emt 0:10:03]} 16. cxd5 {[%emt 0:00:00]} Bxd5 {[%emt 0:00:24]} 17. Bxd5 {[%emt 0:00:00]} Rxd5 {[%emt 0:00:02]} 18. Nf3 {[%emt 0:00:00]} (18. f4 $5) 18... Rbd8 {[%emt 0:04:40]} 19. Rd2 {[%emt 0:00:00] [#]} e5 $1 {[%emt 0:16:32]} 20. e4 {[%emt 0:00:00]} R5d7 {[%emt 0:00:15]} 21. d5 {[%emt 0:00:00]} (21. Nxe5 $2 {too greedy.} Bxe5 22. d5 Bxb2 23. Rxb2 f5 $19) 21... Bh6 {[%emt 0:00:10]} 22. Bxe5 {[%emt 0:00:00]} f5 {[%emt 0:00:08][%cal Of5e4]} 23. Bf4 {[%emt 0:07:54]} Bxf4 {[%emt 0:00:21]} 24. gxf4 {[%emt 0:00:02]} fxe4 {[%emt 0:00:10]} 25. Ng5 {[%emt 0:00:07]} Rxd5 {[%emt 0:00:07]} 26. Rxd5 {[%emt 0:00:26]} Rxd5 {[%emt 0:00:02]} 27. Nxe4 $11 {[%emt 0:00:07][%mdl 4096] Endgame KRN-KRN} Kg7 {[%emt 0:00:24] Wards off Nf6} 28. Kg2 {[%emt 0:06:48]} b6 {[%emt 0:05:02]} 29. b4 {[%emt 0:01:07]} h6 {[%emt 0:00:54]} (29... Rd4 $15 {should be considered.} 30. Ng5 Kf6) 30. Rc4 {[%emt 0:06:27]} Kf7 {[%emt 0:04:55]} 31. Nc3 {[%emt 0:00:47]} Rd3 {[%emt 0:02:50] and ...cxb4 should not be overlooked} 32. Nb5 {[%emt 0:00:27]} Ke6 {[%emt 0:02:25]} 33. bxc5 {[%emt 0:02:06] c6 would now be deadly.} Nxc5 {[%emt 0:00:07]} 34. Nxa7 {[%emt 0:01:01]} Kd5 {[%emt 0:03:47]} 35. Rb4 {[%emt 0:00:11]} Rxa3 {[%emt 0:00:00]} 36. Nc8 {[%emt 0:00:27]} Nd3 {[%emt 0:01:10]} 37. Nxb6+ {[%emt 0:00:53]} Kc6 {[%emt 0:00:00]} 38. Ra4 {[%emt 0:04:17]} Rxa4 {[%emt 0:08:13]} 39. Nxa4 {[%emt 0:00:00]} Nxf4+ {[%emt 0:00:47]} 40. Kf3 {[%emt 0:00:00]} Ne6 {[%emt 0:00:00]} 41. Nc3 {[%emt 0:00:00]} Kd6 {[%emt 0:00:00]} 42. Ke4 {[%emt 0:00:00]} 1/2-1/2

[Event "98th Caplin Hastings Masters 2024-25"]
[Site "Hastings"]
[Date "2024.12.29"]
[Round "2.6"]
[White "Lucas, Arthur"]
[Black "Ghazarian, Kirk"]
[Result "0-1"]
[ECO "C01"]
[WhiteElo "2335"]
[BlackElo "2501"]
[Annotator "TA"]
[PlyCount "90"]
[EventDate "2024.12.23"]
[EventType "swiss"]
[EventCountry "ENG"]
[SourceTitle "playchess.com"]
[Source "ChessBase"]
[SourceQuality "1"]
[TimeControl "5400+30"]

{[%evp 17,90,14,14,14,20,12,10,16,21,21,18,25,29,19,32,24,29,28,49,9,16,16,10,14,14,16,20,20,14,0,0,0,0,0,0,-19,0,0,0,0,0,0,0,0,0,-8,-14,-12,0,-5,0,0,0,0,0,-151,-148,-191,-136,-121,-105,-507,-487,-839,-741,-1227,-1139,-1250,-1177,-1554,-1310,-6605,-6345,-5185,-5114]} 1. e4 {[%emt 0:06:50]} e6 {[%emt 0:00:49]} 2. d4 {[%emt 0:00:43][%cal Bd2d4,Bd4d5,Bd5c6][%mdl 32]} d5 {[%emt 0:00:07]} 3. exd5 {[%emt 0:00:46]} exd5 {[%emt 0:00:07]} 4. Nf3 {[%emt 0:00:04]} Nc6 {[%emt 0:00:17]} 5. Bb5 {[%emt 0:00:24]} Bd6 {[%emt 0:00:13]} 6. c4 {[%emt 0:00:14]} dxc4 {[%emt 0:00:27]} 7. d5 {[%emt 0:00:12]} a6 {[%emt 0:00:05]} 8. Ba4 {[%emt 0:00:27]} b5 {[%emt 0:00:07]} 9. dxc6 {[%emt 0:00:04]} bxa4 {[%emt 0:00:03]} 10. O-O {[%emt 0:00:08][%cal Ob1d2]} Ne7 {[%emt 0:00:14]} 11. Nbd2 {[%emt 0:00:15]} Be6 {[%emt 0:03:20][%cal Bc8e6,Be6d5,Bd5c6][%mdl 32]} 12. Qxa4 {[%emt 0:00:20]} Bd5 {[%emt 0:04:54]} 13. Nxc4 {[%emt 0:05:14]} Bxc6 {[%emt 0:00:54] A strong pair of Bishops.} (13... Nxc6 $2 14. Nxd6+ Qxd6 15. Bf4 $18) (13... Bxf3 $6 14. gxf3 O-O 15. Rd1 $16) 14. Qd1 {[%emt 0:02:37]} O-O {[%emt 0:11:26]} 15. Nxd6 {[%emt 0:01:14]} cxd6 {[%emt 0:03:31]} 16. Bf4 {[%emt 0:11:53]} Ng6 {[%emt 0:03:41]} 17. Bg3 {[%emt 0:06:23]} Qb6 {[%emt 0:31:26]} 18. Qxd6 {[%emt 0:07:54]} (18. Bxd6 $2 {perishes.} Bxf3 19. Qxf3 Qxd6 $19) 18... Rad8 {[%emt 0:01:30][%cal Ba8d8,Bd8d7,Bd7d5][%mdl 32]} 19. Qc7 {[%emt 0:02:15]} Qxc7 $1 {[%emt 0:02:02]} 20. Bxc7 {[%emt 0:02:26][%cal Bg3c7,Bc7a5,Ba5c3][%mdl 32]} Rd7 {[%emt 0:00:01]} 21. Ba5 {[%emt 0:10:51]} Bxf3 {[%emt 0:00:33]} 22. gxf3 {[%emt 0:00:04]} Rd5 {[%emt 0:00:32]} 23. Bc3 {[%emt 0:01:25]} Rfd8 {[%emt 0:02:46]} 24. Kh1 {[%emt 0:11:59]} Rd3 {[%emt 0:07:01]} 25. Rae1 {[%emt 0:03:04]} Rxf3 {[%emt 0:02:06]} 26. Re3 {[%emt 0:08:51]} Rxe3 {[%emt 0:03:38]} 27. fxe3 $11 {[%emt 0:00:02][%mdl 4096] Endgame KRB-KRN} f6 {[%emt 0:00:16]} 28. Kg2 {[%emt 0:01:39]} Kf7 {[%emt 0:00:14]} 29. Kf3 {[%emt 0:08:15]} Ke6 {[%emt 0:00:07]} 30. Ke4 {[%emt 0:04:34]} Rd5 {[%emt 0:05:52]} 31. Bd4 {[%emt 0:00:20]} Rh5 {[%emt 0:01:26]} 32. Rc1 {[%emt 0:01:13]} Rh4+ {[%emt 0:03:53]} 33. Kd3 {[%emt 0:01:27]} Rxh2 {[%emt 0:04:05]} 34. Rc6+ {[%emt 0:00:08]} Kf5 {[%emt 0:00:26]} 35. Rxa6 {[%emt 0:01:19]} h5 {[%emt 0:00:09]} 36. a4 $2 {[%emt 0:02:24] [#]} (36. Ra7 $1 $11) 36... h4 $1 $17 {[%emt 0:00:50] Black is more active.} 37. Rc6 {[%emt 0:00:30] [#]} Ne5+ {[%emt 0:04:20]} ({Black should try} 37... Rh1 $1 $19 {[%cal Rh1d1]} 38. Rc2 h3 39. e4+ Kf4) 38. Bxe5 {[%emt 0:00:01]} fxe5 {[%emt 0:00:24] KR-KR} 39. b4 $2 {[%emt 0:00:59][%mdl 8192]} (39. e4+ $17 Kf4 40. Rg6) 39... Ra2 $19 {[%emt 0:03:08]} 40. a5 {[%emt 0:00:15]} (40. e4+ $142 Kf4 41. Rg6) 40... h3 {[%emt 0:00:17]} 41. Rc8 {[%emt 0:00:46]} g5 {[%emt 0:01:09]} 42. Rh8 {[%emt 0:00:29]} g4 {[%emt 0:00:17]} 43. Kc4 {[%emt 0:00:31]} h2 {[%emt 0:00:50] Strongly threatening ...g3.} 44. a6 {[%emt 0:00:30]} g3 {[%emt 0:00:33]} (44... Rxa6 $2 45. Rxh2 g3 46. Rg2 $19) 45. b5 {[%emt 0:00:24]} Ra1 {[%emt 0:00:24]} 0-1